[Event "Titled Tuesday Blitz August 08 Late 2023"]
[White "Novikova, Margarita"]
[Black "Nathan, Nitish"]
[WhiteFideId "14109689"]
[BlackFideId "30927870"]
[WhiteElo "2143"]
[BlackElo "2415"]
[Result "0-1"]
[Round "4"]
[TimeControl "180+1"]
[Date "2023.08.08"]
[WhiteClock "0:00:00"]
[BlackClock "0:01:23"]
[Board "156"]

1. e4 {[%clk 0:02:11]}  c5 {[%clk 0:02:59]} 2. Nc3 {[%clk 0:02:09]}  Nc6 {[%clk 0:02:59]} 3. d3 {[%clk 0:02:10]}  d6 {[%clk 0:02:59]} 4. g3 {[%clk 0:02:11]}  g6 {[%clk 0:02:59]} 5. Be3 {[%clk 0:02:12]}  Bg7 {[%clk 0:03:00]} 6. Qd2 {[%clk 0:02:13]}  e6 {[%clk 0:02:58]} 7. Bg2 {[%clk 0:02:12]}  Nge7 {[%clk 0:02:58]} 8. Bh6 {[%clk 0:02:12]}  Bxh6 {[%clk 0:02:53]} 9. Qxh6 {[%clk 0:02:12]}  Ng8 {[%clk 0:02:54]} 10. Qd2 {[%clk 0:02:09]}  Nf6 {[%clk 0:02:54]} 11. h3 {[%clk 0:02:09]}  h5 {[%clk 0:02:51]} 12. Nge2 {[%clk 0:02:09]}  e5 {[%clk 0:02:48]} 13. Nd1 {[%clk 0:02:09]}  Be6 {[%clk 0:02:47]} 14. f4 {[%clk 0:01:55]}  Nd4 {[%clk 0:02:45]} 15. c3 {[%clk 0:01:52]}  Nxe2 {[%clk 0:02:44]} 16. Qxe2 {[%clk 0:01:52]}  exf4 {[%clk 0:02:43]} 17. gxf4 {[%clk 0:01:52]}  Qe7 {[%clk 0:02:36]} 18. Ne3 {[%clk 0:01:52]}  O-O-O {[%clk 0:02:36]} 19. a3 {[%clk 0:01:40]}  Kb8 {[%clk 0:02:33]} 20. d4 {[%clk 0:01:39]}  cxd4 {[%clk 0:02:31]} 21. cxd4 {[%clk 0:01:39]}  d5 {[%clk 0:02:31]} 22. e5 {[%clk 0:01:39]}  Ne4 {[%clk 0:02:32]} 23. Bxe4 {[%clk 0:01:31]}  dxe4 {[%clk 0:02:32]} 24. Rd1 {[%clk 0:01:19]}  Bd5 {[%clk 0:02:12]} 25. O-O {[%clk 0:01:14]}  Qe6 {[%clk 0:02:10]} 26. Kh2 {[%clk 0:01:13]}  f5 {[%clk 0:02:06]} 27. exf6 {[%clk 0:01:06]}  Qxf6 {[%clk 0:02:06]} 28. Nxd5 {[%clk 0:01:06]}  Rxd5 {[%clk 0:02:04]} 29. Qxe4 {[%clk 0:01:07]}  Rhd8 {[%clk 0:02:04]} 30. Rfe1 {[%clk 0:00:57]}  Rxd4 {[%clk 0:02:04]} 31. Rxd4 {[%clk 0:00:57]}  Rxd4 {[%clk 0:02:00]} 32. Qe8+ {[%clk 0:00:51]}  Rd8 {[%clk 0:02:00]} 33. Qe5+ {[%clk 0:00:46]}  Qxe5 {[%clk 0:01:58]} 34. fxe5 {[%clk 0:00:45]}  Re8 {[%clk 0:01:58]} 35. Kg3 {[%clk 0:00:45]}  g5 {[%clk 0:01:58]} 36. h4 {[%clk 0:00:45]}  g4 {[%clk 0:01:56]} 37. Kf4 {[%clk 0:00:46]}  Rg8 {[%clk 0:01:54]} 38. Kg3 {[%clk 0:00:36]}  Kc7 {[%clk 0:01:53]} 39. Rd1 {[%clk 0:00:36]}  Re8 {[%clk 0:01:51]} 40. Kf4 {[%clk 0:00:33]}  Rg8 {[%clk 0:01:48]} 41. Kg3 {[%clk 0:00:33]}  Kc6 {[%clk 0:01:47]} 42. b4 {[%clk 0:00:31]}  Rf8 {[%clk 0:01:42]} 43. Rd3 {[%clk 0:00:29]}  Rf5 {[%clk 0:01:41]} 44. Re3 {[%clk 0:00:29]}  Kd5 {[%clk 0:01:40]} 45. e6 {[%clk 0:00:29]}  Rf8 {[%clk 0:01:39]} 46. e7 {[%clk 0:00:29]}  Re8 {[%clk 0:01:39]} 47. Kf4 {[%clk 0:00:30]}  Kd6 {[%clk 0:01:40]} 48. Re5 {[%clk 0:00:22]}  Rxe7 {[%clk 0:01:34]} 49. Rxh5 {[%clk 0:00:22]}  g3 {[%clk 0:01:29]} 50. Kxg3 {[%clk 0:00:20]}  Re3+ {[%clk 0:01:30]} 51. Kf4 {[%clk 0:00:20]}  Rxa3 {[%clk 0:01:31]} 52. Rh7 {[%clk 0:00:19]}  b6 {[%clk 0:01:26]} 53. Rh5 {[%clk 0:00:18]}  Ra4 {[%clk 0:01:25]} 54. Rh6+ {[%clk 0:00:13]}  Ke7 {[%clk 0:01:25]} 55. Rh7+ {[%clk 0:00:14]}  Kf6 {[%clk 0:01:25]} 56. Rb7 {[%clk 0:00:13]}  Rxb4+ {[%clk 0:01:24]} 57. Kg3 {[%clk 0:00:14]}  a5 {[%clk 0:01:24]} 58. h5 {[%clk 0:00:14]}  a4 {[%clk 0:01:24]} 59. Ra7 {[%clk 0:00:00]}  Kg5 {[%clk 0:01:23]} 0-1


[Site "https://www.chess.com"]

[Event "Titled Tuesday Blitz August 08 Late 2023"]
[White "Lacey, Patrick"]
[Black "Grig1508"]
[WhiteFideId "2032007"]
[WhiteElo "2413"]
[BlackElo "2083"]
[Result "1-0"]
[Round "4"]
[TimeControl "180+1"]
[Date "2023.08.08"]
[WhiteClock "0:00:01"]
[BlackClock "0:00:00"]
[Board "158"]

1. Nf3 {[%clk 0:02:59]}  d5 {[%clk 0:02:59]} 2. c4 {[%clk 0:02:58]}  e6 {[%clk 0:02:58]} 3. e3 {[%clk 0:02:56]}  c5 {[%clk 0:02:57]} 4. Nc3 {[%clk 0:02:47]}  d4 {[%clk 0:02:54]} 5. exd4 {[%clk 0:02:34]}  cxd4 {[%clk 0:02:53]} 6. Ne4 {[%clk 0:02:35]}  Nc6 {[%clk 0:02:44]} 7. d3 {[%clk 0:02:26]}  e5 {[%clk 0:02:27]} 8. Be2 {[%clk 0:02:24]}  Bb4+ {[%clk 0:02:25]} 9. Bd2 {[%clk 0:02:23]}  Bxd2+ {[%clk 0:02:24]} 10. Qxd2 {[%clk 0:02:21]}  Nf6 {[%clk 0:02:22]} 11. Nxf6+ {[%clk 0:01:54]}  Qxf6 {[%clk 0:02:21]} 12. O-O {[%clk 0:01:53]}  O-O {[%clk 0:02:20]} 13. Rfe1 {[%clk 0:01:53]}  Qd6 {[%clk 0:02:01]} 14. a3 {[%clk 0:01:43]}  a5 {[%clk 0:01:53]} 15. Ng5 {[%clk 0:01:36]}  f5 {[%clk 0:01:37]} 16. Bf3 {[%clk 0:01:35]}  h6 {[%clk 0:01:25]} 17. Bd5+ {[%clk 0:01:31]}  Kh8 {[%clk 0:01:04]} 18. Nf7+ {[%clk 0:01:31]}  Rxf7 {[%clk 0:01:05]} 19. Bxf7 {[%clk 0:01:31]}  Bd7 {[%clk 0:00:54]} 20. Bd5 {[%clk 0:01:28]}  Rf8 {[%clk 0:00:48]} 21. Qe2 {[%clk 0:01:27]}  Re8 {[%clk 0:00:41]} 22. Qh5 {[%clk 0:01:26]}  b6 {[%clk 0:00:25]} 23. Re2 {[%clk 0:01:03]}  Ne7 {[%clk 0:00:24]} 24. Bf7 {[%clk 0:00:55]}  Rf8 {[%clk 0:00:23]} 25. Rae1 {[%clk 0:00:55]}  Nc6 {[%clk 0:00:22]} 26. Bd5 {[%clk 0:00:54]}  Re8 {[%clk 0:00:19]} 27. Bxc6 {[%clk 0:00:43]}  Bxc6 {[%clk 0:00:17]} 28. Qxf5 {[%clk 0:00:42]}  Rf8 {[%clk 0:00:14]} 29. Qxe5 {[%clk 0:00:40]}  Qg6 {[%clk 0:00:14]} 30. g3 {[%clk 0:00:32]}  Qxd3 {[%clk 0:00:14]} 31. Qd6 {[%clk 0:00:27]}  Qf3 {[%clk 0:00:14]} 32. Qxf8+ {[%clk 0:00:13]}  Qxf8 {[%clk 0:00:13]} 33. f4 {[%clk 0:00:13]}  Kh7 {[%clk 0:00:13]} 34. Re6 {[%clk 0:00:14]}  Qc5 {[%clk 0:00:12]} 35. R1e5 {[%clk 0:00:13]}  Qxc4 {[%clk 0:00:12]} 36. f5 {[%clk 0:00:07]}  Qc1+ {[%clk 0:00:12]} 37. Kf2 {[%clk 0:00:07]}  d3 {[%clk 0:00:11]} 38. f6 {[%clk 0:00:06]}  d2 {[%clk 0:00:08]} 39. Re7 {[%clk 0:00:06]}  d1=N+ {[%clk 0:00:05]} 40. Ke2 {[%clk 0:00:00]}  Qc2+ {[%clk 0:00:00]} 41. Ke1 {[%clk 0:00:01]} 1-0


[Site "https://www.chess.com"]

[Event "Titled Tuesday Blitz August 08 Late 2023"]
[White "Gyulamiryan-koryun"]
[Black "Bueno, Alfeu Junior Varela"]
[BlackFideId "2108879"]
[WhiteElo "2058"]
[BlackElo "2411"]
[Result "0-1"]
[Round "4"]
[TimeControl "180+1"]
[Date "2023.08.08"]
[WhiteClock "0:00:00"]
[BlackClock "0:00:22"]
[Board "160"]

1. e4 {[%clk 0:02:56]}  e6 {[%clk 0:03:00]} 2. d4 {[%clk 0:02:54]}  d5 {[%clk 0:03:00]} 3. Nd2 {[%clk 0:02:54]}  Nf6 {[%clk 0:02:57]} 4. e5 {[%clk 0:02:54]}  Nfd7 {[%clk 0:02:57]} 5. Bd3 {[%clk 0:02:54]}  c5 {[%clk 0:02:58]} 6. c3 {[%clk 0:02:54]}  Nc6 {[%clk 0:02:59]} 7. Ne2 {[%clk 0:02:52]}  cxd4 {[%clk 0:02:59]} 8. cxd4 {[%clk 0:02:51]}  f6 {[%clk 0:03:00]} 9. exf6 {[%clk 0:02:50]}  Nxf6 {[%clk 0:03:01]} 10. O-O {[%clk 0:02:49]}  Bd6 {[%clk 0:03:01]} 11. a3 {[%clk 0:02:48]}  O-O {[%clk 0:03:01]} 12. b4 {[%clk 0:02:47]}  e5 {[%clk 0:03:02]} 13. dxe5 {[%clk 0:02:35]}  Bxe5 {[%clk 0:03:01]} 14. Rb1 {[%clk 0:02:33]}  Ng4 {[%clk 0:02:48]} 15. g3 {[%clk 0:02:22]}  Qb6 {[%clk 0:02:25]} 16. Qe1 {[%clk 0:01:38]}  Nd4 {[%clk 0:02:05]} 17. Bb2 {[%clk 0:01:26]}  Bf5 {[%clk 0:01:17]} 18. Bxf5 {[%clk 0:01:16]}  Rxf5 {[%clk 0:01:17]} 19. Nxd4 {[%clk 0:01:06]}  Bxd4 {[%clk 0:01:16]} 20. Bxd4 {[%clk 0:01:04]}  Qxd4 {[%clk 0:01:17]} 21. Qe6+ {[%clk 0:00:56]}  Rf7 {[%clk 0:01:17]} 22. Nf3 {[%clk 0:00:53]}  Qe4 {[%clk 0:01:10]} 23. Qxe4 {[%clk 0:00:44]}  dxe4 {[%clk 0:01:11]} 24. Ng5 {[%clk 0:00:44]}  Re7 {[%clk 0:01:09]} 25. h3 {[%clk 0:00:40]}  Nf6 {[%clk 0:00:49]} 26. Rfe1 {[%clk 0:00:38]}  Rae8 {[%clk 0:00:46]} 27. h4 {[%clk 0:00:28]}  h6 {[%clk 0:00:37]} 28. Nh3 {[%clk 0:00:28]}  e3 {[%clk 0:00:38]} 29. f3 {[%clk 0:00:26]}  Nd5 {[%clk 0:00:32]} 30. Rb3 {[%clk 0:00:18]}  Rc8 {[%clk 0:00:28]} 31. Re2 {[%clk 0:00:16]}  Rc1+ {[%clk 0:00:24]} 32. Kg2 {[%clk 0:00:15]}  Nc3 {[%clk 0:00:24]} 33. Reb2 {[%clk 0:00:13]}  e2 {[%clk 0:00:23]} 34. Rxe2 {[%clk 0:00:07]}  Rxe2+ {[%clk 0:00:22]} 35. Nf2 {[%clk 0:00:00]}  Nd1 {[%clk 0:00:22]} 0-1


[Site "https://www.chess.com"]

[Event "Titled Tuesday Blitz August 08 Late 2023"]
[White "Burke, Paul"]
[Black "Muhammad Shahzeb"]
[WhiteFideId "2605767"]
[BlackFideId "7804806"]
[WhiteElo "1867"]
[BlackElo "2402"]
[Result "0-1"]
[Round "4"]
[TimeControl "180+1"]
[Date "2023.08.08"]
[WhiteClock "0:00:38"]
[BlackClock "0:02:06"]
[Board "164"]

1. e4 {[%clk 0:02:41]}  d5 {[%clk 0:02:58]} 2. exd5 {[%clk 0:02:40]}  Nf6 {[%clk 0:02:58]} 3. d4 {[%clk 0:02:40]}  Nxd5 {[%clk 0:02:58]} 4. c4 {[%clk 0:02:40]}  Nb6 {[%clk 0:02:59]} 5. Nc3 {[%clk 0:02:40]}  e5 {[%clk 0:02:59]} 6. d5 {[%clk 0:02:39]}  Bb4 {[%clk 0:02:58]} 7. Nf3 {[%clk 0:02:35]}  O-O {[%clk 0:02:58]} 8. Be2 {[%clk 0:02:34]}  e4 {[%clk 0:02:56]} 9. Nd4 {[%clk 0:02:34]}  c6 {[%clk 0:02:46]} 10. dxc6 {[%clk 0:02:19]}  Nxc6 {[%clk 0:02:44]} 11. Nxc6 {[%clk 0:02:19]}  bxc6 {[%clk 0:02:44]} 12. Qxd8 {[%clk 0:02:17]}  Rxd8 {[%clk 0:02:44]} 13. O-O {[%clk 0:02:17]}  Bxc3 {[%clk 0:02:44]} 14. bxc3 {[%clk 0:02:16]}  Be6 {[%clk 0:02:45]} 15. c5 {[%clk 0:02:06]}  Na4 {[%clk 0:02:44]} 16. Be3 {[%clk 0:01:48]}  Nxc3 {[%clk 0:02:42]} 17. Ba6 {[%clk 0:01:47]}  Nd5 {[%clk 0:02:37]} 18. Bb7 {[%clk 0:01:45]}  Rab8 {[%clk 0:02:36]} 19. Bxc6 {[%clk 0:01:43]}  Nxe3 {[%clk 0:02:31]} 20. fxe3 {[%clk 0:01:43]}  Rbc8 {[%clk 0:02:32]} 21. Bxe4 {[%clk 0:01:42]}  Rxc5 {[%clk 0:02:27]} 22. Bf3 {[%clk 0:01:37]}  g5 {[%clk 0:02:25]} 23. h3 {[%clk 0:01:36]}  Rc3 {[%clk 0:02:24]} 24. e4 {[%clk 0:01:35]}  Rd2 {[%clk 0:02:21]} 25. a4 {[%clk 0:01:33]}  Rcc2 {[%clk 0:02:17]} 26. Rab1 {[%clk 0:01:11]}  h5 {[%clk 0:02:14]} 27. Rb5 {[%clk 0:01:05]}  g4 {[%clk 0:02:08]} 28. hxg4 {[%clk 0:01:05]}  hxg4 {[%clk 0:02:06]} 29. Rg5+ {[%clk 0:00:47]}  Kf8 {[%clk 0:02:06]} 30. Bd1 {[%clk 0:00:38]}  Rxg2+ {[%clk 0:02:05]} 31. Kh1 {[%clk 0:00:38]}  Rh2+ {[%clk 0:02:05]} 32. Kg1 {[%clk 0:00:38]}  Rcg2# {[%clk 0:02:06]} 0-1


[Site "https://www.chess.com"]

[Event "Titled Tuesday Blitz August 08 Late 2023"]
[White "Molenda, Marcin"]
[Black "GAO"]
[WhiteFideId "1173065"]
[WhiteElo "2468"]
[BlackElo "2291"]
[Result "1-0"]
[Round "4"]
[TimeControl "180+1"]
[Date "2023.08.08"]
[WhiteClock "0:01:44"]
[BlackClock "0:01:30"]
[Board "165"]

1. e4 {[%clk 0:03:00]}  c5 {[%clk 0:02:56]} 2. Nc3 {[%clk 0:02:59]}  a6 {[%clk 0:02:55]} 3. a4 {[%clk 0:02:57]}  g6 {[%clk 0:02:52]} 4. f4 {[%clk 0:02:57]}  Bg7 {[%clk 0:02:51]} 5. Nf3 {[%clk 0:02:57]}  e6 {[%clk 0:02:50]} 6. e5 {[%clk 0:02:56]}  d5 {[%clk 0:02:47]} 7. d4 {[%clk 0:02:42]}  h5 {[%clk 0:02:46]} 8. dxc5 {[%clk 0:02:41]}  Nh6 {[%clk 0:02:45]} 9. a5 {[%clk 0:02:39]}  Nf5 {[%clk 0:02:43]} 10. b4 {[%clk 0:02:38]}  Nc6 {[%clk 0:02:38]} 11. Rb1 {[%clk 0:02:37]}  Bd7 {[%clk 0:02:32]} 12. Bd3 {[%clk 0:02:32]}  Nh4 {[%clk 0:02:28]} 13. O-O {[%clk 0:02:31]}  O-O {[%clk 0:02:22]} 14. Bd2 {[%clk 0:02:12]}  Rc8 {[%clk 0:02:15]} 15. Be1 {[%clk 0:02:09]}  Nf5 {[%clk 0:02:09]} 16. Bxf5 {[%clk 0:02:07]}  gxf5 {[%clk 0:02:08]} 17. Nd4 {[%clk 0:02:08]}  Nxd4 {[%clk 0:02:04]} 18. Qxd4 {[%clk 0:02:08]}  f6 {[%clk 0:02:04]} 19. Bh4 {[%clk 0:02:07]}  Qe7 {[%clk 0:01:53]} 20. exf6 {[%clk 0:02:04]}  Bxf6 {[%clk 0:01:50]} 21. Bxf6 {[%clk 0:02:04]}  Rxf6 {[%clk 0:01:44]} 22. Rbe1 {[%clk 0:02:01]}  Kf7 {[%clk 0:01:43]} 23. Nxd5 {[%clk 0:01:49]}  exd5 {[%clk 0:01:39]} 24. Rxe7+ {[%clk 0:01:49]}  Kxe7 {[%clk 0:01:39]} 25. Re1+ {[%clk 0:01:47]}  Be6 {[%clk 0:01:35]} 26. Qxd5 {[%clk 0:01:45]}  Rc7 {[%clk 0:01:30]} 27. Qd6+ {[%clk 0:01:44]} 1-0


[Site "https://www.chess.com"]

[Event "Titled Tuesday Blitz August 08 Late 2023"]
[White "Maus7"]
[Black "Weisz, Bryan"]
[BlackFideId "30934133"]
[WhiteElo "2420"]
[BlackElo "2311"]
[Result "0-1"]
[Round "4"]
[TimeControl "180+1"]
[Date "2023.08.08"]
[WhiteClock "0:00:00"]
[BlackClock "0:00:24"]
[Board "166"]

1. e4 {[%clk 0:03:00]}  e5 {[%clk 0:02:51]} 2. Nf3 {[%clk 0:03:01]}  Nc6 {[%clk 0:02:42]} 3. Bc4 {[%clk 0:03:01]}  Na5 {[%clk 0:02:43]} 4. Be2 {[%clk 0:02:23]}  Nf6 {[%clk 0:02:34]} 5. d4 {[%clk 0:02:20]}  Nxe4 {[%clk 0:02:27]} 6. O-O {[%clk 0:02:04]}  exd4 {[%clk 0:02:05]} 7. Re1 {[%clk 0:01:39]}  d5 {[%clk 0:01:58]} 8. c4 {[%clk 0:01:26]}  Bb4 {[%clk 0:01:41]} 9. Nbd2 {[%clk 0:01:01]}  O-O {[%clk 0:01:33]} 10. cxd5 {[%clk 0:00:48]}  Qxd5 {[%clk 0:01:28]} 11. Bd3 {[%clk 0:00:34]}  Nxd2 {[%clk 0:01:15]} 12. Nxd2 {[%clk 0:00:34]}  Bf5 {[%clk 0:01:00]} 13. Nf3 {[%clk 0:00:06]}  Bxe1 {[%clk 0:00:52]} 14. Nxe1 {[%clk 0:00:07]}  Rfe8 {[%clk 0:00:48]} 15. Nf3 {[%clk 0:00:02]}  Bxd3 {[%clk 0:00:44]} 16. Qxd3 {[%clk 0:00:03]}  Qe4 {[%clk 0:00:37]} 17. Qd1 {[%clk 0:00:01]}  d3 {[%clk 0:00:28]} 18. Be3 {[%clk 0:00:01]}  Nc4 {[%clk 0:00:27]} 19. Nd2 {[%clk 0:00:00]}  Nxe3 {[%clk 0:00:24]} 0-1


[Site "https://www.chess.com"]

[Event "Titled Tuesday Blitz August 08 Late 2023"]
[White "Topalov, Aleksandar"]
[Black "Tqebuchava, Zurab"]
[WhiteFideId "925659"]
[BlackFideId "13601113"]
[WhiteElo "2365"]
[BlackElo "2268"]
[Result "1-0"]
[Round "4"]
[TimeControl "180+1"]
[Date "2023.08.08"]
[WhiteClock "0:01:20"]
[BlackClock "0:00:00"]
[Board "167"]

1. b3 {[%clk 0:03:00]}  e6 {[%clk 0:02:57]} 2. Bb2 {[%clk 0:03:00]}  Nf6 {[%clk 0:02:57]} 3. Nf3 {[%clk 0:03:00]}  Be7 {[%clk 0:02:57]} 4. e3 {[%clk 0:03:00]}  d6 {[%clk 0:02:56]} 5. d4 {[%clk 0:02:59]}  b6 {[%clk 0:02:55]} 6. Nbd2 {[%clk 0:02:59]}  Bb7 {[%clk 0:02:54]} 7. Bd3 {[%clk 0:02:59]}  Nbd7 {[%clk 0:02:52]} 8. O-O {[%clk 0:02:59]}  c5 {[%clk 0:02:52]} 9. c4 {[%clk 0:02:55]}  cxd4 {[%clk 0:02:47]} 10. exd4 {[%clk 0:02:52]}  d5 {[%clk 0:02:47]} 11. Qe2 {[%clk 0:02:50]}  O-O {[%clk 0:02:41]} 12. Rfd1 {[%clk 0:02:46]}  Re8 {[%clk 0:02:39]} 13. Nf1 {[%clk 0:02:40]}  Ne4 {[%clk 0:02:35]} 14. Ng3 {[%clk 0:02:31]}  Nxg3 {[%clk 0:02:30]} 15. hxg3 {[%clk 0:02:30]}  Nf8 {[%clk 0:02:29]} 16. Ne5 {[%clk 0:02:20]}  Bf6 {[%clk 0:02:23]} 17. Ng4 {[%clk 0:01:53]}  g6 {[%clk 0:01:52]} 18. Nxf6+ {[%clk 0:01:51]}  Qxf6 {[%clk 0:01:52]} 19. c5 {[%clk 0:01:47]}  bxc5 {[%clk 0:01:33]} 20. dxc5 {[%clk 0:01:46]}  d4 {[%clk 0:01:32]} 21. Bb5 {[%clk 0:01:35]}  Red8 {[%clk 0:01:16]} 22. c6 {[%clk 0:01:34]}  Bc8 {[%clk 0:00:54]} 23. Qe4 {[%clk 0:01:32]}  Rd5 {[%clk 0:00:10]} 24. Bc4 {[%clk 0:01:24]}  Re5 {[%clk 0:00:06]} 25. Qxd4 {[%clk 0:01:22]}  Rb8 {[%clk 0:00:00]} 26. Qxe5 {[%clk 0:01:20]} 1-0


[Site "https://www.chess.com"]

[Event "Titled Tuesday Blitz August 08 Late 2023"]
[White "Ismayil, Malak"]
[Black "Hng, Mei-En Emmanuelle"]
[WhiteFideId "13412604"]
[BlackFideId "5804566"]
[WhiteElo "2586"]
[BlackElo "2244"]
[Result "0-1"]
[Round "4"]
[TimeControl "180+1"]
[Date "2023.08.08"]
[WhiteClock "0:00:00"]
[BlackClock "0:01:22"]
[Board "170"]

1. e4 {[%clk 0:03:00]}  d6 {[%clk 0:02:58]} 2. d4 {[%clk 0:03:00]}  Nf6 {[%clk 0:02:59]} 3. Nc3 {[%clk 0:03:01]}  g6 {[%clk 0:02:59]} 4. Be3 {[%clk 0:03:01]}  Bg7 {[%clk 0:03:00]} 5. f3 {[%clk 0:03:01]}  c6 {[%clk 0:03:00]} 6. Qd2 {[%clk 0:03:01]}  b5 {[%clk 0:03:00]} 7. a3 {[%clk 0:03:01]}  Nbd7 {[%clk 0:02:57]} 8. g4 {[%clk 0:03:02]}  Nb6 {[%clk 0:02:57]} 9. h4 {[%clk 0:03:00]}  h5 {[%clk 0:02:55]} 10. g5 {[%clk 0:02:59]}  Nfd7 {[%clk 0:02:56]} 11. Nh3 {[%clk 0:02:54]}  a6 {[%clk 0:02:45]} 12. Nf4 {[%clk 0:02:49]}  O-O {[%clk 0:02:41]} 13. Be2 {[%clk 0:02:41]}  c5 {[%clk 0:02:39]} 14. Rd1 {[%clk 0:02:33]}  cxd4 {[%clk 0:02:22]} 15. Bxd4 {[%clk 0:02:29]}  Bxd4 {[%clk 0:02:20]} 16. Qxd4 {[%clk 0:02:30]}  e5 {[%clk 0:02:20]} 17. Qxd6 {[%clk 0:02:30]}  exf4 {[%clk 0:02:20]} 18. Qxf4 {[%clk 0:02:29]}  Qe7 {[%clk 0:02:20]} 19. O-O {[%clk 0:02:22]}  Bb7 {[%clk 0:02:20]} 20. Rd6 {[%clk 0:02:19]}  Nc4 {[%clk 0:02:14]} 21. Bxc4 {[%clk 0:02:16]}  bxc4 {[%clk 0:02:14]} 22. Rfd1 {[%clk 0:02:16]}  Ne5 {[%clk 0:02:08]} 23. Nd5 {[%clk 0:01:55]}  Bxd5 {[%clk 0:02:08]} 24. R1xd5 {[%clk 0:01:52]}  Rfe8 {[%clk 0:02:01]} 25. Kg2 {[%clk 0:01:29]}  Rab8 {[%clk 0:01:57]} 26. Qc1 {[%clk 0:01:26]}  Nxf3 {[%clk 0:01:34]} 27. e5 {[%clk 0:01:11]}  Nxh4+ {[%clk 0:01:30]} 28. Kf2 {[%clk 0:00:54]}  Qa7+ {[%clk 0:01:24]} 29. Ke2 {[%clk 0:00:51]}  Nf5 {[%clk 0:01:22]} 30. Rd7 {[%clk 0:00:00]}  Rxe5+ {[%clk 0:01:22]} 0-1


[Site "https://www.chess.com"]

[Event "Titled Tuesday Blitz August 08 Late 2023"]
[White "Biliy, Vadim"]
[Black "Liu, Casper"]
[WhiteFideId "14114127"]
[BlackFideId "1454153"]
[WhiteElo "2215"]
[BlackElo "2476"]
[Result "1-0"]
[Round "4"]
[TimeControl "180+1"]
[Date "2023.08.08"]
[WhiteClock "0:00:15"]
[BlackClock "0:00:00"]
[Board "173"]

1. d4 {[%clk 0:03:00]}  Nf6 {[%clk 0:02:58]} 2. Nf3 {[%clk 0:03:01]}  e6 {[%clk 0:02:56]} 3. e3 {[%clk 0:03:01]}  d5 {[%clk 0:02:57]} 4. c4 {[%clk 0:02:59]}  Be7 {[%clk 0:02:57]} 5. Nc3 {[%clk 0:02:58]}  O-O {[%clk 0:02:57]} 6. Be2 {[%clk 0:02:57]}  b6 {[%clk 0:02:55]} 7. O-O {[%clk 0:02:55]}  Bb7 {[%clk 0:02:55]} 8. b3 {[%clk 0:02:54]}  Nbd7 {[%clk 0:02:55]} 9. Bb2 {[%clk 0:02:53]}  h6 {[%clk 0:02:54]} 10. Rc1 {[%clk 0:02:51]}  c5 {[%clk 0:02:55]} 11. cxd5 {[%clk 0:02:50]}  Nxd5 {[%clk 0:02:54]} 12. Nxd5 {[%clk 0:02:44]}  exd5 {[%clk 0:02:41]} 13. dxc5 {[%clk 0:02:41]}  bxc5 {[%clk 0:02:42]} 14. Bb5 {[%clk 0:02:38]}  Rc8 {[%clk 0:02:33]} 15. Ne5 {[%clk 0:02:24]}  Nxe5 {[%clk 0:02:25]} 16. Bxe5 {[%clk 0:02:23]}  Bf6 {[%clk 0:02:25]} 17. Bxf6 {[%clk 0:02:10]}  Qxf6 {[%clk 0:02:26]} 18. Qd3 {[%clk 0:02:01]}  a6 {[%clk 0:02:20]} 19. Bd7 {[%clk 0:01:57]}  Rc7 {[%clk 0:02:13]} 20. Bh3 {[%clk 0:01:54]}  a5 {[%clk 0:01:55]} 21. Rfd1 {[%clk 0:01:50]}  Rd8 {[%clk 0:01:54]} 22. Qf5 {[%clk 0:01:48]}  Qxf5 {[%clk 0:01:44]} 23. Bxf5 {[%clk 0:01:48]}  g6 {[%clk 0:01:16]} 24. Bg4 {[%clk 0:01:47]}  h5 {[%clk 0:01:10]} 25. Bf3 {[%clk 0:01:47]}  Kf8 {[%clk 0:00:56]} 26. h4 {[%clk 0:01:46]}  Ke7 {[%clk 0:00:55]} 27. Kh2 {[%clk 0:01:47]}  Ke6 {[%clk 0:00:27]} 28. Kg3 {[%clk 0:01:46]}  Rdc8 {[%clk 0:00:24]} 29. Rc3 {[%clk 0:01:40]}  c4 {[%clk 0:00:15]} 30. Rd4 {[%clk 0:01:08]}  Ba6 {[%clk 0:00:12]} 31. Bxd5+ {[%clk 0:01:02]}  Ke5 {[%clk 0:00:09]} 32. f4+ {[%clk 0:01:00]}  Kf6 {[%clk 0:00:07]} 33. bxc4 {[%clk 0:00:56]}  Rb8 {[%clk 0:00:06]} 34. e4 {[%clk 0:00:55]}  Rb2 {[%clk 0:00:05]} 35. e5+ {[%clk 0:00:53]}  Ke7 {[%clk 0:00:03]} 36. Ra3 {[%clk 0:00:47]}  Rc5 {[%clk 0:00:02]} 37. Kf3 {[%clk 0:00:41]}  Rc2 {[%clk 0:00:02]} 38. Ra4 {[%clk 0:00:39]}  f6 {[%clk 0:00:03]} 39. exf6+ {[%clk 0:00:37]}  Kxf6 {[%clk 0:00:04]} 40. Ke3 {[%clk 0:00:35]}  Kf5 {[%clk 0:00:03]} 41. Be4+ {[%clk 0:00:34]}  Kg4 {[%clk 0:00:02]} 42. Bxg6 {[%clk 0:00:32]}  Rxg2 {[%clk 0:00:02]} 43. f5+ {[%clk 0:00:30]}  Kg3 {[%clk 0:00:01]} 44. Ke4 {[%clk 0:00:25]}  Bb7+ {[%clk 0:00:02]} 45. Kd3 {[%clk 0:00:24]}  Rf2 {[%clk 0:00:02]} 46. Kc3 {[%clk 0:00:22]}  Rf3+ {[%clk 0:00:03]} 47. Rd3 {[%clk 0:00:22]}  Rxd3+ {[%clk 0:00:03]} 48. Kxd3 {[%clk 0:00:22]}  Kxh4 {[%clk 0:00:04]} 49. f6 {[%clk 0:00:22]}  Rc6 {[%clk 0:00:03]} 50. f7 {[%clk 0:00:21]}  Rf6 {[%clk 0:00:04]} 51. Rxa5 {[%clk 0:00:20]}  Kg4 {[%clk 0:00:03]} 52. Rxh5 {[%clk 0:00:19]}  Be4+ {[%clk 0:00:01]} 53. Bxe4 {[%clk 0:00:16]}  Rg6 {[%clk 0:00:00]} 54. Bxg6 {[%clk 0:00:15]} 1-0


[Site "https://www.chess.com"]